fUSD/lending_fUSD_20260620
["ID","MTS","AMOUNT","RATE_DAILY","PERIOD"]
[425835589,1781963446000,-207.08,0.00028355,2]
[425835590,1781963446000,-372.16,0.00028355,2]
[425835584,1781963446000,-372.16,0.00028033,30]
[425835588,1781963446000,-175.35,0.00028194,7]
[425835583,1781963446000,-207.08,0.00028033,30]
[425835587,1781963446000,-372.16,0.00028194,7]
[425835591,1781963446000,-175.35,0.00028355,2]
[425835581,1781963446000,-1500.0,0.00027397,2]
[425835582,1781963446000,-175.35,0.00027872,2]
[425835580,1781963446000,-154.0,0.0002,2]
[425835586,1781963446000,-207.08,0.00028194,7]
[425835593,1781963446000,-372.16,0.00028516,30]
[425835585,1781963446000,-175.35,0.00028033,30]
[425835596,1781963446000,-372.16,0.00028677,7]
[425835606,1781963446000,-1543.57500002,0.000298,5]
[425835602,1781963446000,-207.16,0.00029,30]
[425835603,1781963446000,-175.4,0.00029,30]
[425835605,1781963446000,-436.23,0.000298,5]
[425835604,1781963446000,-78580.42110464,0.000298,5]
[425835607,1781963446000,-8153.57319806,0.000298,5]
[425835601,1781963446000,-372.23,0.00029,30]
[425835595,1781963446000,-207.08,0.00028677,7]
[425835598,1781963446000,-207.08,0.00028838,2]
[425835599,1781963446000,-372.16,0.00028838,2]
[425835594,1781963446000,-175.35,0.00028516,30]
[425835600,1781963446000,-175.35,0.00028838,2]
[425835597,1781963446000,-175.35,0.00028677,7]
[425835727,1781963622000,26600.0,0.00015,2]
[425835728,1781963696000,-791.14857175,0.00015,2]
[425835729,1781963712000,-791.14857175,0.00015,2]
[425835730,1781963729000,-297.69962228,0.00014999,2]
[425835733,1781963979000,-150.0,0.00014999,2]
[425835734,1781963994000,-504.0,0.00015,2]
[425835736,1781964025000,-504.0,0.00015,2]
[425835738,1781964029000,-287.25554727,0.00015,2]
[425835737,1781964029000,-216.74445273,0.00014999,2]
[425835740,1781964095000,-208.3897356,0.00014999,2]
[425835741,1781964096000,-27251.6102644,0.00015,2]
[425835745,1781964244000,-2084.00427806,0.00015,2]
[425835746,1781964244000,-93560.8142649,0.00015,2]
[425835747,1781964244000,-186.89804605,0.00015,2]
[425835744,1781964244000,-21663.41816031,0.00015,2]
[425835743,1781964244000,-300.0,0.00014999,2]
[425835742,1781964244000,-150.0,0.00014999,2]
[425835748,1781964248000,5918.437424,7.945e-05,2]
[425835751,1781964311000,1011.17499337,0.00015,2]
[425835752,1781964311000,1440.32120105,0.00015,2]
[425835750,1781964311000,545.01304499,0.00015,2]
[425835834,1781964631000,-83.50164167,0.0002,2]
[425835779,1781964631000,-500.0,0.00016438,2]
[425835776,1781964631000,-500.0,0.00016438,2]
[425835774,1781964631000,-500.0,0.00016438,2]
[425835775,1781964631000,-500.0,0.00016438,2]
[425835773,1781964631000,-500.0,0.00016438,2]
[425835783,1781964631000,-500.0,0.00016438,2]
[425835771,1781964631000,-500.0,0.00016438,2]
[425835782,1781964631000,-500.0,0.00016438,2]
[425835772,1781964631000,-500.0,0.00016438,2]
[425835769,1781964631000,-500.0,0.00016438,2]
[425835768,1781964631000,-500.0,0.00016438,2]
[425835767,1781964631000,-500.0,0.00016438,2]
[425835765,1781964631000,-500.0,0.00016438,2]
[425835763,1781964631000,-500.0,0.00016438,2]
[425835764,1781964631000,-500.0,0.00016438,2]
[425835770,1781964631000,-500.0,0.00016438,2]
[425835762,1781964631000,-500.0,0.00016438,2]
[425835761,1781964631000,-300.0,0.00016437,2]
[425835760,1781964631000,-500.0,0.00016337,2]
[425835759,1781964631000,-189.17762271,0.00015299,7]
[425835778,1781964631000,-500.0,0.00016438,2]
[425835777,1781964631000,-500.0,0.00016438,2]
[425835766,1781964631000,-500.0,0.00016438,2]
[425835781,1781964631000,-500.0,0.00016438,2]
[425835780,1781964631000,-500.0,0.00016438,2]
[425835831,1781964631000,-73.49835833,0.0002,2]
[425835818,1781964631000,-4194.77667609,0.000191,8]
[425835828,1781964631000,-197.0,0.0002,2]
[425835826,1781964631000,-299.999999,0.0002,2]
[425835812,1781964631000,-151.0,0.0001764,2]
[425835823,1781964631000,-3937.06871101,0.000191,8]
[425835814,1781964631000,-200.0,0.00017988,2]
[425835821,1781964631000,-7264.3658235,0.000191,8]
[425835810,1781964631000,-151.0,0.0001764,2]
[425835807,1781964631000,-151.0,0.0001764,2]
[425835816,1781964631000,-220.18,0.000191,9]
[425835789,1781964631000,-500.0,0.00016438,2]
[425835801,1781964631000,-600.0,0.00016829,2]
[425835797,1781964631000,-570.628192,0.00016829,2]
[425835795,1781964631000,-500.0,0.00016438,2]
[425835803,1781964631000,-600.0,0.00016829,2]
[425835799,1781964631000,-300.0,0.00016829,2]
[425835785,1781964631000,-513.62078411,0.00016438,2]
[425835793,1781964631000,-500.0,0.00016438,2]
[425835791,1781964631000,-500.0,0.00016438,2]
[425835805,1781964631000,-151.0,0.0001764,2]
[425835787,1781964631000,-500.0,0.00016438,2]
[425835902,1781964632000,-151.0,0.00022719,2]
[425835898,1781964632000,-500.0,0.00022719,2]
[425835897,1781964632000,-500.0,0.00022719,2]
[425835895,1781964632000,-150.0,0.00022445,2]
[425835892,1781964632000,-150.0,0.00022445,2]
[425835887,1781964632000,-185.55518618,0.00022445,2]
[425835886,1781964632000,-150.0,0.00022445,2]
[425835894,1781964632000,-150.0,0.00022445,2]
[425835900,1781964632000,-151.0,0.00022719,2]
[425835896,1781964632000,-150.0,0.0002254,2]
[425835899,1781964632000,-500.0,0.00022719,2]
[425835915,1781964632000,-151.0,0.00022719,2]
[425835901,1781964632000,-500.0,0.00022719,2]
[425835904,1781964632000,-151.0,0.00022719,2]
[425835905,1781964632000,-500.0,0.00022719,2]
[425835906,1781964632000,-151.0,0.00022719,2]
[425835909,1781964632000,-500.0,0.00022719,2]
[425835908,1781964632000,-151.0,0.00022719,2]
[425835910,1781964632000,-151.0,0.00022719,2]
[425835907,1781964632000,-500.0,0.00022719,2]
[425835917,1781964632000,-151.0,0.00022719,2]
[425835911,1781964632000,-500.0,0.00022719,2]
[425835882,1781964632000,-150.0,0.00022445,2]
[425835903,1781964632000,-500.0,0.00022719,2]
[425835880,1781964632000,-150.0,0.00022445,2]
[425835839,1781964632000,-158.0,0.0002,2]
[425835884,1781964632000,-150.0,0.00022445,2]
[425835837,1781964632000,-504.0,0.0002,2]
[425835913,1781964632000,-500.0,0.00022719,2]
[425835843,1781964632000,-402.0,0.0002,2]
[425835841,1781964632000,-399.0,0.0002,2]
[425835846,1781964632000,-397.0,0.0002,2]
[425835853,1781964632000,-504.0,0.00021579,3]
[425835848,1781964632000,-8523.5858694,0.00020807,2]
[425835850,1781964632000,-197.0,0.00021,2]
[425835852,1781964632000,-157.0,0.00021,2]
[425835855,1781964632000,-150.0,0.00021726,2]
[425835866,1781964632000,-150.0,0.00022445,2]
[425835893,1781964632000,-150.0,0.00022445,2]
[425835868,1781964632000,-150.0,0.00022445,2]
[425835872,1781964632000,-150.0,0.00022445,2]
[425835874,1781964632000,-150.0,0.00022445,2]
[425835870,1781964632000,-150.0,0.00022445,2]
[425835860,1781964632000,-157.0,0.00022,2]
[425835858,1781964632000,-197.0,0.00022,2]
[425835862,1781964632000,-917.0,0.00022406,2]
[425835864,1781964632000,-150.0,0.00022445,2]
[425835878,1781964632000,-150.0,0.00022445,2]
[425835891,1781964632000,-150.0,0.00022445,2]
[425835890,1781964632000,-150.0,0.00022445,2]
[425835889,1781964632000,-150.0,0.00022445,2]
[425835876,1781964632000,-150.0,0.00022445,2]
[425835912,1781964632000,-151.0,0.00022719,2]
[425835914,1781964632000,-151.0,0.00022719,2]
[425835919,1781964632000,-1711.86800977,0.00022933,2]
[425835946,1781964632000,-500.0,0.00024226,2]
[425835948,1781964632000,-500.0,0.00024226,2]
[425835950,1781964632000,-500.0,0.00024226,2]
[425835949,1781964632000,-500.0,0.00024226,2]
[425835953,1781964632000,-500.0,0.00024226,2]
[425835958,1781964632000,-500.0,0.00024226,2]
[425835951,1781964632000,-286.01668497,0.00024226,2]
[425835952,1781964632000,-500.0,0.00024226,2]
[425835954,1781964632000,-500.0,0.00024226,2]
[425835956,1781964632000,-500.0,0.00024226,2]
[425835955,1781964632000,-354.41368462,0.00024226,2]
[425835947,1781964632000,-500.0,0.00024226,2]
[425835959,1781964632000,-500.0,0.00024226,2]
[425835962,1781964632000,-500.0,0.00024226,2]
[425835960,1781964632000,-500.0,0.00024226,2]
[425835965,1781964632000,-580.0,0.00024226,2]
[425835963,1781964632000,-500.01116265,0.00024226,2]
[425835964,1781964632000,-500.0,0.00024226,2]
[425835969,1781964632000,-154.37,0.00024658,2]
[425835967,1781964632000,-166.66,0.00024334,30]
[425835968,1781964632000,-184.32,0.00024658,2]
[425835966,1781964632000,-178.0,0.00024226,2]
[425835916,1781964632000,-500.0,0.00022719,2]
[425835970,1781964632000,-504.0,0.00024737,6]
[425835961,1781964632000,-500.0,0.00024226,2]
[425835944,1781964632000,-500.0,0.00024226,2]
[425835957,1781964632000,-500.0,0.00024226,2]
[425835943,1781964632000,-500.0,0.00024226,2]
[425835918,1781964632000,-151.0,0.00022719,2]
[425835945,1781964632000,-500.0,0.00024226,2]
[425835920,1781964632000,-197.0,0.00023,2]
[425835929,1781964632000,-157.0,0.00024,2]
[425835921,1781964632000,-157.0,0.00023,2]
[425835922,1781964632000,-504.0,0.00023158,5]
[425835928,1781964632000,-197.0,0.00024,2]
[425835924,1781964632000,-183.69325324,0.000236,2]
[425835923,1781964632000,-657.0,0.00023287,7]
[425835927,1781964632000,-1711.86800977,0.00023967,2]
[425835926,1781964632000,-166.66,0.00023832,30]
[425835931,1781964632000,-12961.04,0.00024174,2]
[425835925,1781964632000,-150.0,0.00023667,2]
[425835937,1781964632000,-500.0,0.00024226,2]
[425835939,1781964632000,-500.0,0.00024226,2]
[425835932,1781964632000,-500.0,0.00024226,2]
[425835941,1781964632000,-500.0,0.00024226,2]
[425835940,1781964632000,-500.0,0.00024226,2]
[425835938,1781964632000,-500.0,0.00024226,2]
[425835930,1781964632000,-37718.1802,0.00024074,2]
[425835942,1781964632000,-500.0,0.00024226,2]
[425835934,1781964632000,-500.0,0.00024226,2]
[425835935,1781964632000,-500.0,0.00024226,2]
[425835933,1781964632000,-500.0,0.00024226,2]
[425835936,1781964632000,-500.0,0.00024226,2]
[425836011,1781964633000,-1360.0,0.00025501,2]
[425836000,1781964633000,-500.0,0.00025496,2]
[425836002,1781964633000,-500.0,0.00025496,2]
[425836003,1781964633000,-500.0,0.00025496,2]
[425836004,1781964633000,-500.0,0.00025496,2]
[425836005,1781964633000,-500.0,0.00025496,2]
[425836008,1781964633000,-179.49953064,0.00025496,2]
[425836006,1781964633000,-568.0,0.00025496,2]
[425835997,1781964633000,-500.0,0.00025496,2]
[425836007,1781964633000,-500.0,0.00025496,2]
[425836009,1781964633000,-3560.0,0.00025501,2]
[425836022,1781964633000,-166.66,0.0002634,30]
[425836010,1781964633000,-383.0,0.00025501,2]
[425836013,1781964633000,-201.551253,0.0002557,2]
[425836014,1781964633000,-500.0,0.00025712,2]
[425836020,1781964633000,-552.2966541,0.00026158,2]
[425836021,1781964633000,-504.0,0.00026316,8]
[425836016,1781964633000,-166.66,0.00025839,30]
[425836023,1781964633000,-151.0,0.00026357,7]
[425836017,1781964633000,-1000.0,0.00026,2]
[425836019,1781964633000,-150.0,0.00026093,2]
[425836018,1781964633000,-1711.86800977,0.00026033,2]
[425836001,1781964633000,-500.0,0.00025496,2]
[425836012,1781964633000,-1000.0,0.00025561,2]
[425835999,1781964633000,-500.0,0.00025496,2]
[425835971,1781964633000,-166.66,0.00024835,30]
[425835995,1781964633000,-500.0,0.00025496,2]
[425836025,1781964633000,-475.11461,0.00026455,2]
[425835979,1781964633000,-500.0,0.00025235,2]
[425835980,1781964633000,-721.12765534,0.00025235,2]
[425835973,1781964633000,-5000.0,0.00024966,2]
[425835972,1781964633000,-150.0,0.0002485,2]
[425835976,1781964633000,-163.0,0.00025,2]
[425835977,1781964633000,-843.72,0.00025129,2]
[425835978,1781964633000,-578.20924308,0.00025235,2]
[425835975,1781964633000,-1711.86800977,0.00025,2]
[425835974,1781964633000,-208.0,0.00025,2]
[425835982,1781964633000,-5503.77751861,0.00025235,2]
[425835981,1781964633000,-500.0,0.00025235,2]
[425835984,1781964633000,-500.0,0.00025235,2]
[425835983,1781964633000,-500.0,0.00025235,2]
[425835987,1781964633000,-500.0,0.00025235,2]
[425835985,1781964633000,-500.0,0.00025235,2]
[425835986,1781964633000,-500.0,0.00025235,2]
[425835988,1781964633000,-500.0,0.00025235,2]
[425835989,1781964633000,-500.0,0.00025235,2]
[425835990,1781964633000,-500.0,0.00025235,2]
[425835991,1781964633000,-500.0,0.00025235,2]
[425835993,1781964633000,-500.0,0.00025496,2]
[425835992,1781964633000,-166.66,0.00025337,30]
[425835996,1781964633000,-500.0,0.00025496,2]
[425835994,1781964633000,-500.0,0.00025496,2]
[425835998,1781964633000,-500.0,0.00025496,2]
[425836024,1781964633000,-150.0,0.00026455,5]
[425836015,1781964633000,-12961.04,0.00025786,2]
[425836027,1781964633000,-179.271,0.00026607,14]
[425836052,1781964633000,-160.63,0.00027764,7]
[425836053,1781964633000,-159.36,0.00027764,7]
[425836056,1781964633000,-504.0,0.00027895,9]
[425836060,1781964633000,-747.80937859,0.00027974,2]
[425836064,1781964633000,-163.69,0.00028033,2]
[425836063,1781964633000,-163.81,0.00028033,2]
[425836067,1781964633000,-1711.86800977,0.000281,2]
[425836065,1781964633000,-160.74,0.00028039,7]
[425836066,1781964633000,-161.52,0.00028039,7]
[425836062,1781964633000,-164.22,0.00028033,2]
[425836061,1781964633000,-1140.68472457,0.00028,2]
[425836057,1781964633000,-160.63,0.0002797,2]
[425836070,1781964633000,-160.63,0.00028176,30]
[425836072,1781964633000,-151.0,0.00028267,2]
[425836071,1781964633000,-159.36,0.00028176,30]
[425836073,1781964633000,-340.0,0.00028458,2]
[425836077,1781964633000,-536.73551115,0.00028515,7]
[425836075,1781964633000,-383.0,0.00028501,2]
[425836074,1781964633000,-3560.0,0.00028501,2]
[425836078,1781964633000,-500.0,0.00028515,7]
[425836076,1781964633000,-1360.0,0.00028501,2]
[425836079,1781964633000,-160.74,0.00028519,2]
[425836080,1781964633000,-161.52,0.00028519,2]
[425836035,1781964633000,-611.16,0.00027238,2]
[425836069,1781964633000,-161.2,0.00028176,30]
[425836051,1781964633000,-200.0,0.00027592,2]
[425836068,1781964633000,-154.37,0.0002813,7]
[425836054,1781964633000,-163.81,0.00027791,7]
[425836055,1781964633000,-163.69,0.00027791,7]
[425836031,1781964633000,-500.0,0.00026999,2]
[425836026,1781964633000,-2052.603,0.00026607,14]
[425836034,1781964633000,-1711.86800977,0.00027067,2]
[425836033,1781964633000,-152.21,0.00027056,2]
[425836029,1781964633000,-150.0,0.00026701,2]
[425836030,1781964633000,-154.37,0.00026829,7]
[425836032,1781964633000,-500.0,0.00026999,2]
[425836038,1781964633000,-150.0,0.00027397,2]
[425836039,1781964633000,-169.53724475,0.00027397,2]
[425836036,1781964633000,-152.0,0.00027273,3]
[425836037,1781964633000,-164.09,0.00027387,2]
[425836028,1781964633000,-150.0,0.00026701,2]
[425836050,1781964633000,-161.52,0.00027559,30]
[425836044,1781964633000,-163.81,0.0002755,30]
[425836040,1781964633000,-1500.0,0.00027397,2]
[425836043,1781964633000,-150.0,0.00027513,5]
[425836041,1781964633000,-323.81154665,0.00027397,2]
[425836045,1781964633000,-163.69,0.0002755,30]
[425836042,1781964633000,-150.0,0.00027398,2]
[425836048,1781964633000,-160.74,0.00027559,30]
[425836047,1781964633000,-160.63,0.00027559,30]
[425836046,1781964633000,-154.37,0.00027559,2]
[425836049,1781964633000,-159.36,0.00027559,30]
[425836058,1781964633000,-159.36,0.0002797,2]
[425836059,1781964633000,-599.60298507,0.00027974,2]
[425836102,1781964634000,-500.0,0.00029,2]
[425836101,1781964634000,-500.0,0.00029,2]
[425836109,1781964634000,-500.0,0.00029,2]
[425836099,1781964634000,-500.0,0.00028996,30]
[425836097,1781964634000,-343.0,0.000289,2]
[425836106,1781964634000,-500.0,0.00029,2]
[425836111,1781964634000,-500.0,0.00029,2]
[425836103,1781964634000,-500.0,0.00029,2]
[425836105,1781964634000,-500.0,0.00029,2]
[425836107,1781964634000,-500.0,0.00029,2]
[425836108,1781964634000,-500.0,0.00029,2]
[425836092,1781964634000,-155.0,0.00028896,30]
[425836104,1781964634000,-500.0,0.00029,2]
[425836110,1781964634000,-500.0,0.00029,2]
[425836096,1781964634000,-155.0,0.00028896,30]
[425836088,1781964634000,-157.0,0.00028896,30]
[425836100,1781964634000,-500.0,0.00029,2]
[425836098,1781964634000,-6175.82,0.0002899,2]
[425836095,1781964634000,-158.0,0.00028896,30]
[425836093,1781964634000,-159.0,0.00028896,30]
[425836091,1781964634000,-155.0,0.00028896,30]
[425836089,1781964634000,-155.0,0.00028896,30]
[425836083,1781964634000,-150.0,0.00028836,5]
[425836087,1781964634000,-197.0,0.00028896,30]
[425836090,1781964634000,-153.0,0.00028896,30]
[425836086,1781964634000,-157.0,0.00028896,30]
[425836084,1781964634000,-152.0,0.00028896,30]
[425836082,1781964634000,-150.0,0.00028767,2]
[425836081,1781964634000,-323.81154665,0.00028766,2]
[425836094,1781964634000,-152.0,0.00028896,30]
[425836113,1781964634000,-500.0,0.00029,2]
[425836085,1781964634000,-153.0,0.00028896,30]
[425836123,1781964634000,-154.37,0.00029,30]
[425836144,1781964634000,-13804.9839942,0.00029562,2]
[425836141,1781964634000,-162.4485136,0.00029562,2]
[425836135,1781964634000,-580.59,0.000293,30]
[425836137,1781964634000,-504.0,0.00029474,11]
[425836143,1781964634000,-3134.14056872,0.00029562,2]
[425836138,1781964634000,-1000.0,0.000295,2]
[425836140,1781964634000,-386.0,0.00029543,2]
[425836142,1781964634000,-6117.45936538,0.00029562,2]
[425836139,1781964634000,-3000.0,0.00029502,3]
[425836136,1781964634000,-11441.84421211,0.00029353,2]
[425836132,1781964634000,-1711.86800977,0.00029133,2]
[425836130,1781964634000,-602.62860406,0.00029097,14]
[425836126,1781964634000,-1866.24356,0.00029,2]
[425836127,1781964634000,-194.79,0.00029032,2]
[425836133,1781964634000,-1000.0,0.0002925,2]
[425836112,1781964634000,-500.0,0.00029,2]
[425836134,1781964634000,-1171.18,0.0002925,2]
[425836114,1781964634000,-500.0,0.00029,2]
[425836116,1781964634000,-500.0,0.00029,2]
[425836117,1781964634000,-507.93,0.00029,2]
[425836115,1781964634000,-500.0,0.00029,2]
[425836121,1781964634000,-10000.0,0.00029,3]
[425836120,1781964634000,-378.35301982,0.00029,2]
[425836119,1781964634000,-249.99325174,0.00029,2]
[425836122,1781964634000,-9946.39,0.00029,2]
[425836124,1781964634000,-1000.0,0.00029,2]
[425836129,1781964634000,-341.6032384,0.00029097,14]
[425836125,1781964634000,-1000.0,0.00029,2]
[425836128,1781964634000,-2404.0,0.00029071,5]
[425836118,1781964634000,-270.27811021,0.00029,2]
[425836131,1781964634000,-901.49635082,0.00029097,14]
[425836176,1781964640000,-5534.31012779,0.00019,2]
[425836177,1781964640000,-2270.45930188,0.00019,2]
[425836184,1781964642000,-1514.78564501,0.00019,2]
[425836186,1781964642000,-269.27108241,0.00019,2]
[425836185,1781964642000,-1765.68145762,0.00019,2]
[425836204,1781964645000,-1008.08262274,0.00019,2]
[425836203,1781964645000,-618.60590979,0.00019,2]
[425836205,1781964645000,-569.133,0.00019,2]
[425836208,1781964646000,-259.82999999,0.00019,2]
[425836206,1781964646000,-881.0775321,0.00019,2]
[425836207,1781964646000,-365.34335261,0.00019,2]
[425836210,1781964814000,250.0,0.00014,2]
[425836212,1781964987000,-300.0,0.00016,2]
[425836213,1781964990000,-300.0,0.00016,2]
[425836214,1781965183000,-151.72111691,0.00015999,2]
[425836215,1781965392000,-2270.45930188,0.00016,2]
[425836216,1781965410000,-2270.45930188,0.00016,2]
[425836217,1781965752000,-616.29606026,0.000159,2]
[425836222,1781965831000,-2403.61481478,0.000159,2]
[425836223,1781965831000,-4784.85852496,0.000159,2]
[425836224,1781965831000,-3441.80409984,0.000159,2]
[425836225,1781965831000,-4575.7373752,0.00016,2]
[425836228,1781965831000,-443.65147059,0.00016,2]
[425836227,1781965831000,-895.41,0.00016,2]
[425836229,1781965831000,-3955.94026185,0.00016,2]
[425836231,1781965831000,-1237.08734021,0.00016,2]
[425836230,1781965831000,-905.03509784,0.00016,2]
[425836226,1781965831000,-951.59844034,0.00016,2]
[425836249,1781965837000,-350.0,0.00018,2]
[425836245,1781965837000,-151.0,0.0001764,2]
[425836247,1781965837000,-151.0,0.0001764,2]
[425836246,1781965837000,-151.0,0.0001764,2]
[425836241,1781965837000,-178754.62939922,0.00016,2]
[425836243,1781965837000,-206.892844,0.00016,2]
[425836242,1781965837000,-500.0,0.00016,2]
[425836240,1781965837000,-3196.0,0.00016,2]
[425836239,1781965837000,-4461.06857084,0.00016,2]
[425836238,1781965837000,-5403.8167257,0.00016,2]
[425836244,1781965837000,-3441.80409984,0.00017567,2]
[425836248,1781965837000,-151.0,0.0001764,2]
[425836254,1781965837000,-178.0,0.0002,2]
[425836253,1781965837000,-80000.0,0.0002,2]
[425836255,1781965837000,-152.0,0.0002,2]
[425836261,1781965837000,-152.0,0.00021,2]
[425836260,1781965837000,-178.0,0.00021,2]
[425836259,1781965837000,-3441.80409984,0.000209,2]
[425836262,1781965837000,-492.0,0.00021,2]
[425836258,1781965837000,-513.0,0.0002,2]
[425836257,1781965837000,-546.0,0.0002,2]
[425836252,1781965837000,-3087.91,0.0001999,2]
[425836250,1781965837000,-3441.80409984,0.00019233,2]
[425836251,1781965837000,-1871.0934365,0.000199,2]
[425836256,1781965837000,-492.0,0.0002,2]
[425836307,1781965838000,-151.0,0.000225,2]
[425836316,1781965838000,-492.0,0.00023,2]
[425836313,1781965838000,-800.0,0.00022829,2]
[425836312,1781965838000,-3441.80409984,0.00022567,2]
[425836308,1781965838000,-151.0,0.000225,2]
[425836297,1781965838000,-500.0,0.000225,2]
[425836311,1781965838000,-151.0,0.000225,2]
[425836314,1781965838000,-178.0,0.00023,2]
[425836309,1781965838000,-500.0,0.000225,2]
[425836328,1781965838000,-178.0,0.00024,2]
[425836310,1781965838000,-151.0,0.000225,2]
[425836326,1781965838000,-151.0,0.00023967,7]
[425836321,1781965838000,-151.0,0.00023092,2]
[425836319,1781965838000,-92418.6212443,0.00023092,2]
[425836320,1781965838000,-151.0,0.00023092,2]
[425836317,1781965838000,-546.0,0.00023,2]
[425836322,1781965838000,-151.0,0.00023092,2]
[425836304,1781965838000,-500.0,0.000225,2]
[425836318,1781965838000,-51051.7071609,0.00023092,2]
[425836323,1781965838000,-513.0,0.0002375,5]
[425836324,1781965838000,-1871.09343643,0.00023871,2]
[425836333,1781965838000,-492.0,0.00024,2]
[425836331,1781965838000,-152.0,0.00024,2]
[425836335,1781965838000,-546.0,0.00024,2]
[425836341,1781965838000,-3441.80409984,0.00024233,2]
[425836336,1781965838000,-151.0,0.00024074,2]
[425836315,1781965838000,-152.0,0.00023,2]
[425836339,1781965838000,-166.66,0.00024108,30]
[425836288,1781965838000,-151.0,0.000225,2]
[425836299,1781965838000,-151.0,0.000225,2]
[425836267,1781965838000,-6406.91,0.00021471,2]
[425836264,1781965838000,-427.65,0.00021273,2]
[425836265,1781965838000,-11645.59,0.00021273,2]
[425836263,1781965838000,-546.0,0.00021,2]
[425836266,1781965838000,-237.16,0.00021459,2]
[425836269,1781965838000,-513.0,0.00021875,3]
[425836268,1781965838000,-150.99,0.00021757,2]
[425836272,1781965838000,-152.0,0.00022,2]
[425836273,1781965838000,-492.0,0.00022,2]
[425836271,1781965838000,-178.0,0.00022,2]
[425836270,1781965838000,-1871.09343643,0.00021886,2]
[425836274,1781965838000,-546.0,0.00022,2]
[425836275,1781965838000,-549.48505909,0.00022407,2]
[425836276,1781965838000,-549.48505907,0.00022407,2]
[425836278,1781965838000,-811.51344802,0.000225,2]
[425836277,1781965838000,-549.48505907,0.00022407,2]
[425836280,1781965838000,-500.0,0.000225,2]
[425836279,1781965838000,-500.0,0.000225,2]
[425836290,1781965838000,-500.0,0.000225,2]
[425836283,1781965838000,-500.0,0.000225,2]
[425836282,1781965838000,-500.0,0.000225,2]
[425836294,1781965838000,-500.0,0.000225,2]
[425836292,1781965838000,-151.0,0.000225,2]
[425836281,1781965838000,-151.0,0.000225,2]
[425836284,1781965838000,-151.0,0.000225,2]
[425836286,1781965838000,-500.0,0.000225,2]
[425836301,1781965838000,-500.0,0.000225,2]
[425836306,1781965838000,-151.0,0.000225,2]
[425836345,1781965838000,-166.66,0.00024616,30]
[425836303,1781965838000,-151.0,0.000225,2]
[425836350,1781965838000,-153.0,0.00025,2]
[425836419,1781965838000,-1184.13547659,0.00026496,2]
[425836411,1781965838000,-1148.61238259,0.00026496,2]
[425836415,1781965838000,-1235.18214925,0.00026496,2]
[425836408,1781965838000,-1068.11,0.00026496,2]
[425836416,1781965838000,-1280.88388877,0.00026496,2]
[425836422,1781965838000,-153.21094056,0.00026496,2]
[425836418,1781965838000,-1377.42282658,0.00026496,2]
[425836421,1781965838000,-174.61919141,0.00026496,2]